[Event "Titled Tuesday Blitz March 29 Early 2022"]
[White "Lehtosaari, Mauri"]
[Black "Terletsky, Oleg"]
[WhiteFideId "501999"]
[BlackFideId "14116774"]
[WhiteElo "2491"]
[BlackElo "2064"]
[Result "0-1"]
[Round "09"]
[TimeControl "180+1"]
[Date "2022.03.30"]
[WhiteClock "0:00:04"]
[BlackClock "0:00:12"]

1. d4 {[%clk 0:03:00]}  Nf6 {[%clk 0:03:00]} 2. Nf3 {[%clk 0:03:00]}  g6 {[%clk 0:03:00]} 3. Bg5 {[%clk 0:03:00]}  Bg7 {[%clk 0:03:00]} 4. Nbd2 {[%clk 0:03:00]}  d5 {[%clk 0:03:01]} 5. e3 {[%clk 0:03:00]}  h6 {[%clk 0:02:57]} 6. Bh4 {[%clk 0:03:00]}  c5 {[%clk 0:02:56]} 7. c3 {[%clk 0:03:00]}  Nc6 {[%clk 0:02:55]} 8. Be2 {[%clk 0:02:59]}  cxd4 {[%clk 0:02:54]} 9. cxd4 {[%clk 0:02:52]}  O-O {[%clk 0:02:49]} 10. O-O {[%clk 0:02:49]}  Qb6 {[%clk 0:02:37]} 11. Qb3 {[%clk 0:02:45]}  Bf5 {[%clk 0:02:31]} 12. Rfc1 {[%clk 0:02:13]}  Rfc8 {[%clk 0:02:27]} 13. Qb5 {[%clk 0:02:00]}  Qxb5 {[%clk 0:02:09]} 14. Bxb5 {[%clk 0:01:59]}  Nb4 {[%clk 0:02:09]} 15. a3 {[%clk 0:01:41]}  Nd3 {[%clk 0:01:56]} 16. Bxd3 {[%clk 0:01:35]}  Bxd3 {[%clk 0:01:55]} 17. Ne5 {[%clk 0:01:36]}  Bc2 {[%clk 0:01:43]} 18. b4 {[%clk 0:00:56]}  g5 {[%clk 0:01:39]} 19. Bg3 {[%clk 0:00:56]}  Nh5 {[%clk 0:01:39]} 20. Ra2 {[%clk 0:00:53]}  Ba4 {[%clk 0:01:15]} 21. Raa1 {[%clk 0:00:53]}  Nxg3 {[%clk 0:01:13]} 22. hxg3 {[%clk 0:00:54]}  b6 {[%clk 0:00:55]} 23. Kf1 {[%clk 0:00:46]}  f6 {[%clk 0:00:50]} 24. Nef3 {[%clk 0:00:43]}  g4 {[%clk 0:00:48]} 25. Nh4 {[%clk 0:00:35]}  e5 {[%clk 0:00:45]} 26. Nf5 {[%clk 0:00:34]}  Bf8 {[%clk 0:00:42]} 27. f3 {[%clk 0:00:28]}  h5 {[%clk 0:00:35]} 28. Kf2 {[%clk 0:00:28]}  Kf7 {[%clk 0:00:35]} 29. Rh1 {[%clk 0:00:18]}  Rc2 {[%clk 0:00:34]} 30. Ke1 {[%clk 0:00:17]}  Rac8 {[%clk 0:00:33]} 31. Rxh5 {[%clk 0:00:13]}  Rb2 {[%clk 0:00:15]} 32. dxe5 {[%clk 0:00:09]}  fxe5 {[%clk 0:00:14]} 33. e4 {[%clk 0:00:08]}  Rcc2 {[%clk 0:00:13]} 34. fxg4 {[%clk 0:00:03]}  Rxd2 {[%clk 0:00:12]} 35. Kf1 {[%clk 0:00:04]}  Rf2+ {[%clk 0:00:12]} 36. Kg1 {[%clk 0:00:05]}  Rxg2+ {[%clk 0:00:12]} 37. Kh1 {[%clk 0:00:06]}  dxe4 {[%clk 0:00:12]} 38. Rf1 {[%clk 0:00:05]}  Ke6 {[%clk 0:00:12]} 39. Ne3 {[%clk 0:00:05]}  Rgf2 {[%clk 0:00:12]} 40. Re1 {[%clk 0:00:05]}  Rbe2 {[%clk 0:00:11]} 41. Rxe2 {[%clk 0:00:05]}  Rxe2 {[%clk 0:00:12]} 42. Nf5 {[%clk 0:00:05]}  e3 {[%clk 0:00:12]} 43. Kg1 {[%clk 0:00:05]}  Bc6 {[%clk 0:00:12]} 44. Rh7 {[%clk 0:00:04]}  Rg2+ {[%clk 0:00:12]} 45. Kf1 {[%clk 0:00:05]}  e2+ {[%clk 0:00:12]} 46. Ke1 {[%clk 0:00:05]}  Bf3 {[%clk 0:00:13]} 47. Rh1 {[%clk 0:00:03]}  Bxg4 {[%clk 0:00:12]} 48. Ne3 {[%clk 0:00:03]}  Bf3 {[%clk 0:00:11]} 49. Nxg2 {[%clk 0:00:03]}  Bxg2 {[%clk 0:00:12]} 50. Rh2 {[%clk 0:00:03]}  Bf3 {[%clk 0:00:12]} 51. Kf2 {[%clk 0:00:04]}  e4 {[%clk 0:00:12]} 52. Rh5 {[%clk 0:00:03]}  Bg7 {[%clk 0:00:12]} 53. Rg5 {[%clk 0:00:03]}  Bf6 {[%clk 0:00:12]} 54. Rg6 {[%clk 0:00:03]}  Kf5 {[%clk 0:00:11]} 55. Rh6 {[%clk 0:00:03]}  Bd4+ {[%clk 0:00:11]} 56. Ke1 {[%clk 0:00:03]}  Bc3+ {[%clk 0:00:12]} 57. Kf2 {[%clk 0:00:04]}  e1=Q# {[%clk 0:00:12]} 0-1


[Site "https://www.chess.com"]

[Event "Titled Tuesday Blitz March 29 Early 2022"]
[White "Liyanage, Ranindu Dilshan"]
[Black "Baches Garcia, Guillermo"]
[WhiteFideId "9915834"]
[BlackFideId "2209764"]
[WhiteElo "2649"]
[BlackElo "2503"]
[Result "1-0"]
[Round "09"]
[TimeControl "180+1"]
[Date "2022.03.30"]
[WhiteClock "0:01:56"]
[BlackClock "0:00:10"]

1. h4 {[%clk 0:03:00]}  e5 {[%clk 0:02:59]} 2. h5 {[%clk 0:03:01]}  d5 {[%clk 0:02:58]} 3. h6 {[%clk 0:02:59]}  Nxh6 {[%clk 0:02:57]} 4. d4 {[%clk 0:02:59]}  Ng4 {[%clk 0:02:40]} 5. dxe5 {[%clk 0:02:57]}  Nxe5 {[%clk 0:02:32]} 6. Bf4 {[%clk 0:02:54]}  Bd6 {[%clk 0:02:22]} 7. Nc3 {[%clk 0:02:53]}  Be6 {[%clk 0:02:07]} 8. e3 {[%clk 0:02:52]}  Nbc6 {[%clk 0:02:03]} 9. Qd2 {[%clk 0:02:50]}  Nc4 {[%clk 0:01:54]} 10. Bxc4 {[%clk 0:02:48]}  dxc4 {[%clk 0:01:52]} 11. Nge2 {[%clk 0:02:47]}  Bxf4 {[%clk 0:01:46]} 12. Nxf4 {[%clk 0:02:48]}  Qxd2+ {[%clk 0:01:46]} 13. Kxd2 {[%clk 0:02:49]}  O-O-O+ {[%clk 0:01:46]} 14. Ke2 {[%clk 0:02:49]}  Ne5 {[%clk 0:01:44]} 15. Nxe6 {[%clk 0:02:39]}  fxe6 {[%clk 0:01:44]} 16. Rh5 {[%clk 0:02:39]}  Ng6 {[%clk 0:01:32]} 17. Rc5 {[%clk 0:02:36]}  Rhf8 {[%clk 0:01:14]} 18. Rxc4 {[%clk 0:02:34]}  Rf5 {[%clk 0:01:11]} 19. Rh1 {[%clk 0:02:31]}  h6 {[%clk 0:01:11]} 20. Rg4 {[%clk 0:02:29]}  Ne5 {[%clk 0:00:51]} 21. Rxg7 {[%clk 0:02:24]}  Nc4 {[%clk 0:00:51]} 22. Ne4 {[%clk 0:02:24]}  Nxb2 {[%clk 0:00:44]} 23. Rxh6 {[%clk 0:02:20]}  Rb5 {[%clk 0:00:29]} 24. Rhh7 {[%clk 0:02:17]}  c6 {[%clk 0:00:29]} 25. Rc7+ {[%clk 0:02:07]}  Kb8 {[%clk 0:00:29]} 26. Rce7 {[%clk 0:02:06]}  a5 {[%clk 0:00:24]} 27. g4 {[%clk 0:02:04]}  a4 {[%clk 0:00:19]} 28. g5 {[%clk 0:02:03]}  Nc4 {[%clk 0:00:12]} 29. g6 {[%clk 0:02:01]}  Re5 {[%clk 0:00:10]} 30. g7 {[%clk 0:01:56]} 1-0


[Site "https://www.chess.com"]

[Event "Titled Tuesday Blitz March 29 Early 2022"]
[White "Ljukin, Sergei"]
[Black "Gaehwiler, Gabriel"]
[WhiteFideId "14102200"]
[BlackFideId "1314530"]
[WhiteElo "2554"]
[BlackElo "2686"]
[Result "0-1"]
[Round "09"]
[TimeControl "180+1"]
[Date "2022.03.30"]
[WhiteClock "0:00:01"]
[BlackClock "0:00:11"]

1. e4 {[%clk 0:02:56]}  e5 {[%clk 0:02:58]} 2. Nf3 {[%clk 0:02:55]}  Nf6 {[%clk 0:02:58]} 3. Nxe5 {[%clk 0:02:55]}  d6 {[%clk 0:02:59]} 4. Nf3 {[%clk 0:02:55]}  Nxe4 {[%clk 0:02:59]} 5. d3 {[%clk 0:02:56]}  Nf6 {[%clk 0:02:59]} 6. d4 {[%clk 0:02:56]}  d5 {[%clk 0:03:00]} 7. c4 {[%clk 0:02:57]}  Be7 {[%clk 0:02:57]} 8. Nc3 {[%clk 0:02:57]}  O-O {[%clk 0:02:57]} 9. Be2 {[%clk 0:02:57]}  Nbd7 {[%clk 0:02:43]} 10. O-O {[%clk 0:02:52]}  dxc4 {[%clk 0:02:43]} 11. Bxc4 {[%clk 0:02:52]}  Nb6 {[%clk 0:02:43]} 12. Bb3 {[%clk 0:02:52]}  c6 {[%clk 0:02:43]} 13. Re1 {[%clk 0:02:45]}  Nfd5 {[%clk 0:02:40]} 14. Ne4 {[%clk 0:02:39]}  Bf5 {[%clk 0:02:37]} 15. Ne5 {[%clk 0:02:36]}  Be6 {[%clk 0:02:29]} 16. Bd2 {[%clk 0:02:06]}  Nc7 {[%clk 0:01:55]} 17. Ba5 {[%clk 0:01:47]}  Bxb3 {[%clk 0:01:43]} 18. axb3 {[%clk 0:01:46]}  Ne6 {[%clk 0:01:39]} 19. Bc3 {[%clk 0:01:35]}  Qd5 {[%clk 0:01:33]} 20. Ra5 {[%clk 0:01:11]}  Qd8 {[%clk 0:01:31]} 21. Qg4 {[%clk 0:01:04]}  Nd5 {[%clk 0:01:18]} 22. Ng3 {[%clk 0:00:35]}  Nxc3 {[%clk 0:00:41]} 23. Nxf7 {[%clk 0:00:31]}  Rxf7 {[%clk 0:00:36]} 24. Rae5 {[%clk 0:00:14]}  Nd5 {[%clk 0:00:19]} 25. Rxe6 {[%clk 0:00:13]}  Bf6 {[%clk 0:00:19]} 26. Nf5 {[%clk 0:00:13]}  Kh8 {[%clk 0:00:18]} 27. Kf1 {[%clk 0:00:07]}  Qf8 {[%clk 0:00:18]} 28. h4 {[%clk 0:00:03]}  Nc7 {[%clk 0:00:15]} 29. R6e4 {[%clk 0:00:02]}  Rd8 {[%clk 0:00:15]} 30. h5 {[%clk 0:00:01]}  a5 {[%clk 0:00:14]} 31. f3 {[%clk 0:00:01]}  b5 {[%clk 0:00:11]} 32. h6 {[%clk 0:00:01]}  g6 {[%clk 0:00:11]} 33. Ng3 {[%clk 0:00:01]}  Nd5 {[%clk 0:00:11]} 0-1


[Site "https://www.chess.com"]

[Event "Titled Tuesday Blitz March 29 Early 2022"]
[White "Melikhov, Evgeny V."]
[Black "Secer, Ata"]
[WhiteFideId "4122046"]
[BlackFideId "6303293"]
[WhiteElo "1945"]
[BlackElo "2282"]
[Result "0-1"]
[Round "09"]
[TimeControl "180+1"]
[Date "2022.03.30"]
[WhiteClock "0:00:04"]
[BlackClock "0:00:23"]

1. d4 {[%clk 0:02:59]}  d5 {[%clk 0:02:58]} 2. c4 {[%clk 0:02:59]}  c6 {[%clk 0:02:58]} 3. Nc3 {[%clk 0:02:59]}  Nf6 {[%clk 0:02:58]} 4. e3 {[%clk 0:02:59]}  a6 {[%clk 0:02:58]} 5. c5 {[%clk 0:02:59]}  g6 {[%clk 0:02:55]} 6. f4 {[%clk 0:02:58]}  Bg7 {[%clk 0:02:55]} 7. Nf3 {[%clk 0:02:58]}  O-O {[%clk 0:02:55]} 8. Be2 {[%clk 0:02:57]}  Bg4 {[%clk 0:02:55]} 9. O-O {[%clk 0:02:56]}  Ne4 {[%clk 0:02:55]} 10. Nxe4 {[%clk 0:02:54]}  dxe4 {[%clk 0:02:56]} 11. Nd2 {[%clk 0:02:54]}  Bxe2 {[%clk 0:02:56]} 12. Qxe2 {[%clk 0:02:54]}  f5 {[%clk 0:02:56]} 13. b4 {[%clk 0:02:50]}  Nd7 {[%clk 0:02:52]} 14. Nb3 {[%clk 0:02:49]}  Nf6 {[%clk 0:02:51]} 15. Bd2 {[%clk 0:02:47]}  Nd5 {[%clk 0:02:51]} 16. a3 {[%clk 0:02:44]}  e6 {[%clk 0:02:45]} 17. Rfb1 {[%clk 0:02:38]}  g5 {[%clk 0:02:45]} 18. g3 {[%clk 0:02:31]}  Rf7 {[%clk 0:02:41]} 19. Na5 {[%clk 0:02:20]}  Bf6 {[%clk 0:02:32]} 20. Nc4 {[%clk 0:02:17]}  Rg7 {[%clk 0:02:24]} 21. Kf2 {[%clk 0:02:09]}  Kh8 {[%clk 0:02:23]} 22. Rg1 {[%clk 0:02:07]}  Qe7 {[%clk 0:02:17]} 23. Qh5 {[%clk 0:02:01]}  Rag8 {[%clk 0:02:16]} 24. Ke2 {[%clk 0:01:56]}  gxf4 {[%clk 0:02:14]} 25. exf4 {[%clk 0:01:55]}  Bxd4 {[%clk 0:02:11]} 26. Rgd1 {[%clk 0:01:35]}  Qf6 {[%clk 0:02:01]} 27. Rac1 {[%clk 0:01:32]}  Qg6 {[%clk 0:01:49]} 28. Qxg6 {[%clk 0:01:30]}  hxg6 {[%clk 0:01:44]} 29. h4 {[%clk 0:01:27]}  Kh7 {[%clk 0:01:43]} 30. Be1 {[%clk 0:01:14]}  Bf6 {[%clk 0:01:41]} 31. Bf2 {[%clk 0:01:13]}  Rd7 {[%clk 0:01:34]} 32. Kf1 {[%clk 0:00:42]}  Rgd8 {[%clk 0:01:33]} 33. Kg1 {[%clk 0:00:33]}  Nc3 {[%clk 0:01:25]} 34. Rxd7+ {[%clk 0:00:31]}  Rxd7 {[%clk 0:01:26]} 35. Kf1 {[%clk 0:00:30]}  Rd3 {[%clk 0:01:22]} 36. Nd6 {[%clk 0:00:25]}  Nd5 {[%clk 0:01:15]} 37. Nxb7 {[%clk 0:00:19]}  Rxa3 {[%clk 0:01:15]} 38. Na5 {[%clk 0:00:18]}  Nxb4 {[%clk 0:01:11]} 39. Nc4 {[%clk 0:00:16]}  Ra2 {[%clk 0:01:06]} 40. Rb1 {[%clk 0:00:16]}  Nd3 {[%clk 0:01:02]} 41. Be3 {[%clk 0:00:16]}  Kh6 {[%clk 0:00:58]} 42. Rb6 {[%clk 0:00:15]}  Kh5 {[%clk 0:00:56]} 43. Rxc6 {[%clk 0:00:13]}  Kg4 {[%clk 0:00:56]} 44. Rxe6 {[%clk 0:00:14]}  Kf3 {[%clk 0:00:43]} 45. Kg1 {[%clk 0:00:13]}  Kxg3 {[%clk 0:00:31]} 46. Kf1 {[%clk 0:00:06]}  Kf3 {[%clk 0:00:31]} 47. Kg1 {[%clk 0:00:05]}  Bxh4 {[%clk 0:00:31]} 48. Rxg6 {[%clk 0:00:04]}  Bg3 {[%clk 0:00:23]} 0-1


[Site "https://www.chess.com"]

[Event "Titled Tuesday Blitz March 29 Early 2022"]
[White "Mena, Ailen Oriana"]
[Black "Johnson, Ben"]
[WhiteFideId "3902773"]
[BlackFideId "2010917"]
[WhiteElo "1534"]
[BlackElo "2186"]
[Result "0-1"]
[Round "09"]
[TimeControl "180+1"]
[Date "2022.03.30"]
[WhiteClock "0:00:08"]
[BlackClock "0:00:08"]

1. e4 {[%clk 0:03:00]}  c5 {[%clk 0:02:55]} 2. c3 {[%clk 0:03:00]}  Nf6 {[%clk 0:02:54]} 3. e5 {[%clk 0:03:00]}  Nd5 {[%clk 0:02:54]} 4. d4 {[%clk 0:03:00]}  cxd4 {[%clk 0:02:54]} 5. Nf3 {[%clk 0:03:00]}  Nc6 {[%clk 0:02:54]} 6. cxd4 {[%clk 0:03:00]}  d6 {[%clk 0:02:53]} 7. Bc4 {[%clk 0:02:59]}  Nb6 {[%clk 0:02:53]} 8. Bb5 {[%clk 0:02:59]}  Bd7 {[%clk 0:02:53]} 9. O-O {[%clk 0:02:45]}  e6 {[%clk 0:02:51]} 10. Nc3 {[%clk 0:02:20]}  a6 {[%clk 0:02:42]} 11. Bd3 {[%clk 0:02:14]}  dxe5 {[%clk 0:02:28]} 12. dxe5 {[%clk 0:02:14]}  Be7 {[%clk 0:02:27]} 13. Qe2 {[%clk 0:02:13]}  Qc7 {[%clk 0:01:59]} 14. a3 {[%clk 0:02:10]}  O-O {[%clk 0:01:15]} 15. Qe4 {[%clk 0:02:03]}  g6 {[%clk 0:01:15]} 16. Bh6 {[%clk 0:01:53]}  Rfd8 {[%clk 0:01:12]} 17. Rac1 {[%clk 0:01:50]}  Be8 {[%clk 0:01:08]} 18. Rfe1 {[%clk 0:01:31]}  Qd7 {[%clk 0:01:01]} 19. Bb1 {[%clk 0:01:29]}  Nd5 {[%clk 0:00:59]} 20. Bg5 {[%clk 0:01:03]}  Nxc3 {[%clk 0:00:49]} 21. Rxc3 {[%clk 0:01:01]}  Bxg5 {[%clk 0:00:33]} 22. Nxg5 {[%clk 0:01:02]}  Qd4 {[%clk 0:00:33]} 23. h4 {[%clk 0:00:32]}  h6 {[%clk 0:00:27]} 24. Nf3 {[%clk 0:00:24]}  Qxe4 {[%clk 0:00:25]} 25. Bxe4 {[%clk 0:00:23]}  Kg7 {[%clk 0:00:20]} 26. Rec1 {[%clk 0:00:19]}  Nd4 {[%clk 0:00:18]} 27. Nxd4 {[%clk 0:00:18]}  Rxd4 {[%clk 0:00:15]} 28. Bxb7 {[%clk 0:00:18]}  Rb8 {[%clk 0:00:14]} 29. Rc7 {[%clk 0:00:19]}  Rd2 {[%clk 0:00:13]} 30. b4 {[%clk 0:00:18]}  Bb5 {[%clk 0:00:11]} 31. R1c3 {[%clk 0:00:12]}  Rbd8 {[%clk 0:00:09]} 32. Rf3 {[%clk 0:00:12]}  R8d7 {[%clk 0:00:09]} 33. Rxd7 {[%clk 0:00:10]}  Rxd7 {[%clk 0:00:10]} 34. Bxa6 {[%clk 0:00:10]}  Bxa6 {[%clk 0:00:09]} 35. a4 {[%clk 0:00:08]}  Rd4 {[%clk 0:00:09]} 36. b5 {[%clk 0:00:08]}  Bb7 {[%clk 0:00:09]} 37. a5 {[%clk 0:00:08]}  Bxf3 {[%clk 0:00:08]} 0-1


[Site "https://www.chess.com"]

[Event "Titled Tuesday Blitz March 29 Early 2022"]
[White "Mihailidis, Anastasios"]
[Black "De Souza, Cristiano Gomes"]
[WhiteFideId "4205588"]
[BlackFideId "2151758"]
[WhiteElo "2312"]
[BlackElo "2068"]
[Result "0-1"]
[Round "09"]
[TimeControl "180+1"]
[Date "2022.03.30"]
[WhiteClock "0:00:02"]
[BlackClock "0:01:52"]

1. e4 {[%clk 0:03:00]}  c5 {[%clk 0:02:59]} 2. Nf3 {[%clk 0:03:00]}  d6 {[%clk 0:02:59]} 3. d4 {[%clk 0:02:59]}  cxd4 {[%clk 0:02:59]} 4. Nxd4 {[%clk 0:03:00]}  Nf6 {[%clk 0:02:59]} 5. f3 {[%clk 0:03:00]}  g6 {[%clk 0:02:57]} 6. c4 {[%clk 0:03:00]}  Bg7 {[%clk 0:02:58]} 7. Nc3 {[%clk 0:03:00]}  O-O {[%clk 0:02:58]} 8. Be3 {[%clk 0:03:00]}  a5 {[%clk 0:02:57]} 9. Be2 {[%clk 0:03:00]}  Nc6 {[%clk 0:02:57]} 10. O-O {[%clk 0:03:00]}  Bd7 {[%clk 0:02:56]} 11. Qd2 {[%clk 0:02:59]}  a4 {[%clk 0:02:57]} 12. Rac1 {[%clk 0:02:59]}  Nxd4 {[%clk 0:02:56]} 13. Bxd4 {[%clk 0:02:59]}  Bc6 {[%clk 0:02:56]} 14. Rfd1 {[%clk 0:02:59]}  Nd7 {[%clk 0:02:56]} 15. Bxg7 {[%clk 0:02:55]}  Kxg7 {[%clk 0:02:56]} 16. Qd4+ {[%clk 0:02:55]}  Kg8 {[%clk 0:02:54]} 17. Rc2 {[%clk 0:02:54]}  Qb6 {[%clk 0:02:54]} 18. Qxb6 {[%clk 0:02:54]}  Nxb6 {[%clk 0:02:53]} 19. Nd5 {[%clk 0:02:54]}  Bxd5 {[%clk 0:02:52]} 20. cxd5 {[%clk 0:02:55]}  Rac8 {[%clk 0:02:51]} 21. Rdc1 {[%clk 0:02:54]}  Rxc2 {[%clk 0:02:50]} 22. Rxc2 {[%clk 0:02:54]}  Rc8 {[%clk 0:02:51]} 23. Rxc8+ {[%clk 0:02:51]}  Nxc8 {[%clk 0:02:51]} 24. Kf2 {[%clk 0:02:48]}  Nb6 {[%clk 0:02:50]} 25. Ke3 {[%clk 0:02:49]}  e6 {[%clk 0:02:51]} 26. Kd4 {[%clk 0:02:46]}  Kf8 {[%clk 0:02:51]} 27. Bb5 {[%clk 0:02:20]}  Ke7 {[%clk 0:02:50]} 28. f4 {[%clk 0:02:19]}  f5 {[%clk 0:02:48]} 29. exf5 {[%clk 0:02:11]}  Nxd5 {[%clk 0:02:40]} 30. fxg6 {[%clk 0:02:06]}  hxg6 {[%clk 0:02:39]} 31. g3 {[%clk 0:02:05]}  Nb6 {[%clk 0:02:37]} 32. a3 {[%clk 0:01:54]}  Kf6 {[%clk 0:02:35]} 33. g4 {[%clk 0:01:46]}  e5+ {[%clk 0:02:36]} 34. fxe5+ {[%clk 0:01:45]}  dxe5+ {[%clk 0:02:36]} 35. Kc5 {[%clk 0:01:39]}  Nc8 {[%clk 0:02:32]} 36. Bxa4 {[%clk 0:01:35]}  Kg5 {[%clk 0:02:32]} 37. b4 {[%clk 0:01:18]}  Kf4 {[%clk 0:02:30]} 38. Bd7 {[%clk 0:01:01]}  e4 {[%clk 0:02:21]} 39. Kd4 {[%clk 0:00:47]}  e3 {[%clk 0:02:15]} 40. Kd3 {[%clk 0:00:43]}  Nd6 {[%clk 0:02:15]} 41. Be6 {[%clk 0:00:30]}  Kf3 {[%clk 0:01:55]} 42. Bd5+ {[%clk 0:00:16]}  Kf2 {[%clk 0:01:54]} 43. Bb3 {[%clk 0:00:02]}  e2 {[%clk 0:01:52]} 0-1


[Site "https://www.chess.com"]

[Event "Titled Tuesday Blitz March 29 Early 2022"]
[White "Mikhnenko, Alexander"]
[Black "Sanchez, Robert"]
[WhiteFideId "34143014"]
[BlackFideId "2034360"]
[WhiteElo "2184"]
[BlackElo "2273"]
[Result "0-1"]
[Round "09"]
[TimeControl "180+1"]
[Date "2022.03.30"]
[WhiteClock "0:00:07"]
[BlackClock "0:02:32"]

1. Nf3 {[%clk 0:00:16]}  d6 {[%clk 0:02:57]} 2. g3 {[%clk 0:00:16]}  Nf6 {[%clk 0:02:58]} 3. Bg2 {[%clk 0:00:17]}  Nc6 {[%clk 0:02:59]} 4. O-O {[%clk 0:00:18]}  Bd7 {[%clk 0:02:59]} 5. d3 {[%clk 0:00:19]}  Qc8 {[%clk 0:03:00]} 6. e4 {[%clk 0:00:20]}  h5 {[%clk 0:02:59]} 7. h4 {[%clk 0:00:20]}  Bh3 {[%clk 0:02:58]} 8. Ng5 {[%clk 0:00:20]}  Bxg2 {[%clk 0:02:58]} 9. Kxg2 {[%clk 0:00:21]}  Ne5 {[%clk 0:02:58]} 10. d4 {[%clk 0:00:20]}  Ng6 {[%clk 0:02:58]} 11. Nc3 {[%clk 0:00:20]}  e6 {[%clk 0:02:57]} 12. f4 {[%clk 0:00:20]}  Be7 {[%clk 0:02:57]} 13. f5 {[%clk 0:00:20]}  exf5 {[%clk 0:02:52]} 14. exf5 {[%clk 0:00:21]}  Nf8 {[%clk 0:02:53]} 15. Qe2 {[%clk 0:00:21]}  Qd7 {[%clk 0:02:53]} 16. Bd2 {[%clk 0:00:20]}  N8h7 {[%clk 0:02:53]} 17. Rae1 {[%clk 0:00:19]}  Kf8 {[%clk 0:02:53]} 18. Nxh7+ {[%clk 0:00:16]}  Rxh7 {[%clk 0:02:52]} 19. Bg5 {[%clk 0:00:16]}  Re8 {[%clk 0:02:51]} 20. Qf3 {[%clk 0:00:16]}  c6 {[%clk 0:02:48]} 21. Re2 {[%clk 0:00:17]}  Ng4 {[%clk 0:02:45]} 22. Rfe1 {[%clk 0:00:12]}  f6 {[%clk 0:02:43]} 23. Bf4 {[%clk 0:00:12]}  Qxf5 {[%clk 0:02:38]} 24. Rxe7 {[%clk 0:00:10]}  Rxe7 {[%clk 0:02:35]} 25. Rxe7 {[%clk 0:00:09]}  Kxe7 {[%clk 0:02:34]} 26. Bxd6+ {[%clk 0:00:10]}  Kxd6 {[%clk 0:02:31]} 27. Qxf5 {[%clk 0:00:09]}  Ne3+ {[%clk 0:02:31]} 28. Kf3 {[%clk 0:00:08]}  Nxf5 {[%clk 0:02:32]} 29. Kf4 {[%clk 0:00:07]} 0-1


[Site "https://www.chess.com"]

[Event "Titled Tuesday Blitz March 29 Early 2022"]
[White "Mortazavi, Ali"]
[Black "Bacrot, Etienne"]
[WhiteFideId "401323"]
[BlackFideId "605506"]
[WhiteElo "2339"]
[BlackElo "2673"]
[Result "0-1"]
[Round "09"]
[TimeControl "180+1"]
[Date "2022.03.29"]
[WhiteClock "0:00:09"]
[BlackClock "0:00:12"]

1. Nf3 {[%clk 0:03:00]}  c5 {[%clk 0:02:59]} 2. g3 {[%clk 0:02:57]}  g6 {[%clk 0:02:59]} 3. Bg2 {[%clk 0:02:57]}  Bg7 {[%clk 0:02:59]} 4. O-O {[%clk 0:02:52]}  Nc6 {[%clk 0:02:59]} 5. d3 {[%clk 0:02:48]}  e5 {[%clk 0:02:59]} 6. c4 {[%clk 0:02:48]}  Nge7 {[%clk 0:02:59]} 7. Nc3 {[%clk 0:02:49]}  O-O {[%clk 0:02:59]} 8. Ne1 {[%clk 0:02:49]}  d6 {[%clk 0:02:57]} 9. Nc2 {[%clk 0:02:49]}  Be6 {[%clk 0:02:57]} 10. Ne3 {[%clk 0:02:46]}  Qd7 {[%clk 0:02:57]} 11. a3 {[%clk 0:02:43]}  Bh3 {[%clk 0:02:57]} 12. Ned5 {[%clk 0:02:43]}  Bxg2 {[%clk 0:02:55]} 13. Kxg2 {[%clk 0:02:44]}  f5 {[%clk 0:02:47]} 14. Rb1 {[%clk 0:02:40]}  f4 {[%clk 0:02:46]} 15. b4 {[%clk 0:02:36]}  Rf7 {[%clk 0:02:30]} 16. b5 {[%clk 0:02:33]}  Nd4 {[%clk 0:02:24]} 17. Nxe7+ {[%clk 0:02:32]}  Qxe7 {[%clk 0:02:22]} 18. f3 {[%clk 0:02:25]}  h5 {[%clk 0:02:05]} 19. Ne4 {[%clk 0:02:15]}  Bh6 {[%clk 0:02:01]} 20. gxf4 {[%clk 0:02:01]}  exf4 {[%clk 0:01:48]} 21. Kh1 {[%clk 0:01:59]}  Kh7 {[%clk 0:01:47]} 22. Rg1 {[%clk 0:01:57]}  Rg8 {[%clk 0:01:43]} 23. Qf1 {[%clk 0:01:31]}  Qe6 {[%clk 0:01:13]} 24. Bb2 {[%clk 0:01:16]}  Nc2 {[%clk 0:01:11]} 25. Qf2 {[%clk 0:01:01]}  g5 {[%clk 0:01:07]} 26. Rg2 {[%clk 0:00:52]}  Ne3 {[%clk 0:01:07]} 27. Rgg1 {[%clk 0:00:33]}  Rg6 {[%clk 0:01:05]} 28. Bc1 {[%clk 0:00:31]}  Nf5 {[%clk 0:01:02]} 29. Bd2 {[%clk 0:00:22]}  b6 {[%clk 0:00:51]} 30. Qg2 {[%clk 0:00:21]}  g4 {[%clk 0:00:47]} 31. fxg4 {[%clk 0:00:14]}  hxg4 {[%clk 0:00:48]} 32. Qf2 {[%clk 0:00:13]}  Nd4 {[%clk 0:00:36]} 33. Bc3 {[%clk 0:00:13]}  g3 {[%clk 0:00:33]} 34. Qg2 {[%clk 0:00:07]}  f3 {[%clk 0:00:26]} 35. exf3 {[%clk 0:00:07]}  Nxf3 {[%clk 0:00:26]} 36. Rgf1 {[%clk 0:00:07]}  gxh2 {[%clk 0:00:17]} 37. Qxf3 {[%clk 0:00:06]}  Rxf3 {[%clk 0:00:16]} 38. Rxf3 {[%clk 0:00:07]}  Qg4 {[%clk 0:00:10]} 39. Rg3 {[%clk 0:00:02]}  Qxg3 {[%clk 0:00:09]} 40. Nxg3 {[%clk 0:00:01]}  Rxg3 {[%clk 0:00:10]} 41. Kxh2 {[%clk 0:00:02]}  Rxd3 {[%clk 0:00:10]} 42. Be1 {[%clk 0:00:02]}  Rxa3 {[%clk 0:00:09]} 43. Bg3 {[%clk 0:00:02]}  Ra4 {[%clk 0:00:09]} 44. Rf1 {[%clk 0:00:01]}  Rxc4 {[%clk 0:00:09]} 45. Rf7+ {[%clk 0:00:02]}  Kg6 {[%clk 0:00:09]} 46. Rxa7 {[%clk 0:00:03]}  Rb4 {[%clk 0:00:09]} 47. Rd7 {[%clk 0:00:03]}  Rxb5 {[%clk 0:00:09]} 48. Rxd6+ {[%clk 0:00:03]}  Kh7 {[%clk 0:00:09]} 49. Rd7+ {[%clk 0:00:04]}  Kg8 {[%clk 0:00:09]} 50. Rd6 {[%clk 0:00:03]}  Be3 {[%clk 0:00:09]} 51. Kh3 {[%clk 0:00:03]}  c4 {[%clk 0:00:09]} 52. Kg4 {[%clk 0:00:03]}  c3 {[%clk 0:00:09]} 53. Rd8+ {[%clk 0:00:03]}  Kf7 {[%clk 0:00:09]} 54. Rc8 {[%clk 0:00:04]}  Bc5 {[%clk 0:00:09]} 55. Rc7+ {[%clk 0:00:04]}  Ke6 {[%clk 0:00:09]} 56. Bf4 {[%clk 0:00:04]}  Kd5 {[%clk 0:00:09]} 57. Rh7 {[%clk 0:00:04]}  Kc4 {[%clk 0:00:09]} 58. Kf3 {[%clk 0:00:04]}  Rb1 {[%clk 0:00:09]} 59. Ke2 {[%clk 0:00:04]}  c2 {[%clk 0:00:09]} 60. Rh4 {[%clk 0:00:03]}  Kb5 {[%clk 0:00:09]} 61. Bd2 {[%clk 0:00:03]}  c1=Q {[%clk 0:00:09]} 62. Bxc1 {[%clk 0:00:03]}  Rxc1 {[%clk 0:00:10]} 63. Kd2 {[%clk 0:00:04]}  Rb1 {[%clk 0:00:10]} 64. Kc2 {[%clk 0:00:04]}  Rb4 {[%clk 0:00:11]} 65. Rh3 {[%clk 0:00:05]}  Kc6 {[%clk 0:00:11]} 66. Kc3 {[%clk 0:00:05]}  Ra4 {[%clk 0:00:10]} 67. Rh6+ {[%clk 0:00:06]}  Kb5 {[%clk 0:00:10]} 68. Kb3 {[%clk 0:00:06]}  Ra3+ {[%clk 0:00:10]} 69. Kb2 {[%clk 0:00:07]}  Re3 {[%clk 0:00:11]} 70. Rh4 {[%clk 0:00:07]}  Ka5 {[%clk 0:00:11]} 71. Rh5 {[%clk 0:00:07]}  Kb4 {[%clk 0:00:10]} 72. Rh4+ {[%clk 0:00:07]}  Kb5 {[%clk 0:00:11]} 73. Rh5 {[%clk 0:00:07]}  Kc6 {[%clk 0:00:11]} 74. Rh6+ {[%clk 0:00:08]}  Kd5 {[%clk 0:00:11]} 75. Rh5+ {[%clk 0:00:09]}  Kc4 {[%clk 0:00:12]} 76. Rh4+ {[%clk 0:00:09]}  Bd4+ {[%clk 0:00:12]} 77. Kc2 {[%clk 0:00:09]}  b5 {[%clk 0:00:12]} 78. Kb1 {[%clk 0:00:09]}  b4 {[%clk 0:00:12]} 79. Rh7 {[%clk 0:00:10]}  Re1+ {[%clk 0:00:12]} 80. Ka2 {[%clk 0:00:09]}  b3+ {[%clk 0:00:12]} 81. Ka3 {[%clk 0:00:09]}  Ra1# {[%clk 0:00:12]} 0-1


[Site "https://www.chess.com"]